Workbook

Sheet Backpacking
A1: Trip length
B2: Days = | C2: =C3*7 -> 7
B3: Weeks = | C3: 1
B4: Months = | C4: =C3/4.35 -> 0.2298850575
A6: Travel-camping material is in a blue font
A8: Class | B8: Sub-class
A9: Food | B9: Meal | D9: 1=take, 0=no | E9: unit | F9: oz/unit | G9: units/day | H9: /week | I9: /month | J9: weeks | K9: /trip | L9: oz (total) | M9: lb | N9: cal/oz | O9: cal/week | P9: cal/day | Q9: cal/lb
B10: Breakfast
C11: Granola (~116 cal/oz) | D11: 1 | E11: cup | F11: 4 | H11: 5 | J11: =C3 -> 1 | L11: =D11*F11*H11*J11 -> 20 | M11: =L11/16 -> 1.25 | N11: 116 | O11: =J11*H11*F11*N11 -> 2320 | P11: =O11/7 -> 331.4285714 | Q11: =N11*16 -> 1856
C12: Milk powder | D12: 1 | E12: cup | F12: 6.5 | H12: 1 | J12: =C3 -> 1 | L12: =D12*F12*H12*J12 -> 6.5 | M12: =L12/16 -> 0.40625 | N12: 100 | O12: =J12*H12*F12*N12 -> 650 | P12: =O12/7 -> 92.85714286 | Q12: =N12*16 -> 1600
C13: Coffee | D13: 1 | E13: oz | F13: 1 | G13: 5 tbsp | H13: 10 | J13: =C3 -> 1 | L13: 10 | M13: 0.625 | O13: 0 | P13: 0 | Q13: 0
C14: Coffee, freeze dried, consider
C15: Sugar (~110 cal/oz) | D15: 1 | E15: oz | F15: 1 | H15: 7 | J15: =C3 -> 1 | L15: 7 | M15: 0.4375 | N15: 110 | O15: 770 | P15: 110 | Q15: 1760
C16: Vitamins, meds, xtra ibuprofen | D16: 1 | E16: oz | F16: 1 | H16: 3.25 | J16: =C3 -> 1 | L16: 3.25 | M16: =L16/16 -> 0.203125 | O16: 0 | P16: 0 | Q16: 0
C17: Teas, drinks | D17: 1 | E17: oz | F17: 1 | K17: 1.5 | L17: =D17*F17*K17 -> 1.5 | M17: =L17/16 -> 0.09375 | O17: 0 | P17: 0 | Q17: 0
C18: Condensed milk | D18: 0 | E18: can | F18: 14 | H18: 2 | J18: 1 | L18: =D18*F18*H18*J18 -> 0 | M18: =L18/16 -> 0 | O18: 0 | P18: 0 | Q18: 0
B19: Trail | O19: 0 | P19: 0 | Q19: 0
C20: Sesame sticks | D20: 1 | E20: fist | F20: 1.333333333 | H20: 4 | J20: =C3 -> 1 | L20: 5.333333333 | M20: =L20/16 -> 0.3333333333 | N20: 155 | O20: 826.6666667 | P20: 118.0952381 | Q20: 2480
C21: Nuts (Peanuts, Cashews ~160 cal/oz) | D21: 1 | E21: fist | F21: 1.666666667 | H21: 4 | J21: =C3 -> 1 | L21: 6.666666667 | M21: 0.4166666667 | N21: 160 | O21: 1066.666667 | P21: 152.3809524 | Q21: 2560
C22: Dried fruit | D22: 1 | E22: fist | F22: 2.166666667 | H22: 4 | J22: =C3 -> 1 | L22: 8.666666667 | M22: 0.5416666667 | N22: 100 | O22: 866.6666667 | P22: 123.8095238 | Q22: 1600
B23: Dinner | O23: 0 | P23: 0 | Q23: 0
C24: Rice, instant | D24: 1 | E24: fist | F24: 1.333333333 | H24: 7 | J24: =C3 -> 1 | L24: 9.333333333 | M24: =L24/16 -> 0.5833333333 | N24: 115 | O24: 1073.333333 | P24: 153.3333333 | Q24: 1840
C25: Beans | D25: 1 | E25: fist | F25: 1.666666667 | H25: 6 | J25: =C3 -> 1 | L25: 10 | M25: =L25/16 -> 0.625 | N25: 102 | O25: 1020 | P25: 145.7142857 | Q25: 1632
C26: Ramen | D26: 1 | E26: packet | F26: 2.5 | H26: 2 | J26: =C3 -> 1 | L26: 5 | M26: 0.3125 | N26: 102 | O26: 510 | P26: 72.85714286 | Q26: 1632
C27: Broths | D27: 1 | E27: packet | F27: 0.5 | H27: 2 | J27: =C3 -> 1 | L27: 1 | M27: 0.0625 | N27: 70 | O27: 70 | P27: 10 | Q27: 1120
C28: Jerky | D28: 1 | E28: packet | F28: 3 | H28: 1 | J28: =C3 -> 1 | L28: 3 | M28: 0.1875 | N28: 116 | O28: 348 | P28: 49.71428571 | Q28: 1856
C29: Fruit bars | D29: 1 | E29: bar | F29: 1.2 | H29: 5 | J29: =C3 -> 1 | L29: 6 | M29: 0.375 | N29: 100 | O29: 600 | P29: 85.71428571 | Q29: 1600
C30: Turmeric | D30: 1 | E30: oz | F30: 1 | H30: 1 | J30: =C3 -> 1 | L30: 1 | M30: 0.0625 | O30: 0 | P30: 0 | Q30: 0
C31: Jalapenos | D31: 1 | E31: jalapeno | F31: 0.5 | H31: 2 | J31: =C3 -> 1 | L31: 1 | M31: 0.0625 | O31: 0 | P31: 0 | Q31: 0
C32: Garlic, packets | D32: 1 | E32: packet | F32: 1.5 | H32: 1 | J32: =C3 -> 1 | L32: 1.5 | M32: 0.09375 | O32: 0 | P32: 0 | Q32: 0
C33: Onion, thumb dia | D33: 1 | E33: onion | F33: 6 | H33: 1 | J33: =C3 -> 1 | L33: 6 | M33: 0.375 | O33: 0 | P33: 0 | Q33: 0
C34: Spices | D34: 1 | E34: oz | F34: 0.5 | H34: 3 | J34: =C3 -> 1 | L34: 1.5 | M34: 0.09375 | O34: 0 | P34: 0 | Q34: 0
C35: Salt | D35: 1 | E35: oz | F35: 1 | H35: 2 | J35: =C3 -> 1 | L35: 2 | M35: 0.125 | O35: 0 | P35: 0 | Q35: 0
C36: Veg oil (~240 cal/oz) | D36: 1 | E36: oz | F36: 1 | H36: 2 | J36: =C3 -> 1 | L36: 2 | M36: 0.125 | N36: 240 | O36: 480 | P36: 68.57142857 | Q36: 3840
B37: Stuff sacks | D37: 1 | E37: sack | F37: 4 | K37: 1 | L37: =D37*F37*K37 -> 4 | M37: 0.25 | O37: =SUM(O11:O36) -> 10601.33333 | P37: 1514.47619 | Q37: =O37/M38 -> 1387.495569
A38: Food, total | L38: =SUM(L11:L37) -> 122.25 | M38: =L38/16 -> 7.640625
A40: Cooking... | D40: Count
C41: Utensils | D41: 1 | E41: item(s) | F41: 8.5 | K41: 1 | L41: =D41*F41 -> 8.5 | M41: =L41/16 -> 0.53125
C42: Stove-MSR Dragonfly | D42: 1 | E42: item(s) | F42: 14.5 | K42: 1 | L42: =D42*F42 -> 14.5 | M42: =L42/16 -> 0.90625
C43: Heat shield | D43: 1 | E43: item(s) | F43: 2.5 | K43: 1 | L43: 2.5 | M43: 0.15625
C44: Pot, titanium | D44: 1 | E44: item(s) | F44: 8 | K44: 1 | L44: 8 | M44: 0.5
C45: Pot, stainless, 0.50 gal | D45: 0 | E45: item(s) | F45: 20 | K45: 1 | L45: 0 | M45: 0
C46: Pot, stainless, 0.25 gal | D46: 0 | E46: item(s) | F46: 13 | K46: 1 | L46: 0 | M46: 0
C47: Fuel bottle, 1 l tr/ 33oz | D47: 1 | E47: item(s) | F47: 7.6 | K47: 1 | L47: =D47*F47 -> 7.6 | M47: =L47/16 -> 0.475
C48: Fuel bottle, 591 ml / 20oz | D48: 0 | E48: item(s) | F48: 6 | K48: 1 | L48: =D48*F48 -> 0 | M48: =L48/16 -> 0
C49: Fuel bottle, 325 ml / 11oz | D49: 0 | E49: item(s) | F49: 4 | K49: 1 | L49: =D49*F49 -> 0 | M49: =L49/16 -> 0
C51: Fuel | E51: fl oz | F51: 0.7 | H51: 32 | L51: =F51*H51 -> 22.4 | M51: =L51/16 -> 1.4
C53: MSR Pocket Rocket Deluxe (get?) | D53: 0 | E53: item(s) | F53: 2.9 | K53: 1 | L53: =D53*F53 -> 0 | M53: =L53/16 -> 0
C54: MSR 16 oz cannister-ask at Ad-Edge | D54: 0 | E54: item(s) | F54: 16 | K54: 1 | L54: =D54*F54 -> 0 | M54: =L54/16 -> 0
A55: Cooking… total | L55: =SUM(L41:L51) -> 63.5 | M55: 3.96875
A57: Hiking, travel | I57: include in pack weight, 0 = no
C58: Backpack, Osprey, Ejos | D58: 1 | E58: item(s) | F58: 43 | I58: 1 | L58: =D58*F58*I58 -> 43 | M58: =L58/16 -> 2.6875
C59: Pack Cover, Osprey, Large | D59: 0 | E59: item(s) | F59: 3 | I59: 1 | L59: =D59*F59*I59 -> 0 | M59: =L59/16 -> 0
C60: Backpack, Osprey, Argon 85M | D60: 0 | E60: item(s) | F60: 104 | I60: 1 | L60: =D60*F60*I60 -> 0 | M60: =L60/16 -> 0
C61: Olive Jansport daypack | D61: 0 | E61: item(s) | F61: 17 | I61: 1 | L61: =D61*F61*I61 -> 0 | M61: =L61/16 -> 0
C62: Binoculars | D62: 0 | E62: item(s) | F62: 8.5 | I62: 1 | L62: =D62*F62*I62 -> 0 | M62: =L62/16 -> 0
C63: Rifle, .30-06 | D63: 0 | E63: item(s) | F63: 144 | I63: 1 | L63: =D63*F63*I63 -> 0 | M63: =L63/16 -> 0
C64: Shoes, ankle high | D64: 0 | E64: item(s) | F64: 48 | I64: 0 | L64: 0 | M64: 0
C65: Shoes, running | D65: 1 | E65: item(s) | F65: 30 | I65: 0 | L65: 0 | M65: 0
C66: Sneakers | D66: 0 | E66: item(s) | F66: 29 | I66: 1 | L66: 0 | M66: 0
C67: Sandals | D67: 1 | E67: item(s) | F67: 19 | I67: 1 | L67: 19 | M67: 1.1875
C68: Shoes, dress | D68: 0 | E68: item(s) | F68: 26 | I68: 1 | L68: =D68*F68*I68 -> 0 | M68: =L68/16 -> 0
C69: MSR Snowshoes | D69: 0 | E69: item(s) | F69: 59 | I69: 1 | L69: =D69*F69*I69 -> 0 | M69: 0
C70: … MSR Snowshoe extebsuibs | D70: 0 | E70: item(s) | F70: 17 | I70: 1 | L70: =D70*F70*I70 -> 0 | M70: 0
C71: Cross-country skis and poles | D71: 0 | E71: item(s) | F71: 118 | I71: 1 | L71: 0 | M71: 0
C72: Crampons | D72: 0 | E72: item(s) | F72: 40.75 | I72: 1 | L72: 0 | M72: 0
C73: Trekking poles, Leki | D73: 1 | E73: item(s) | F73: 20 | I73: 1 | L73: =D73*F73*I73 -> 20 | M73: =L73/16 -> 1.25
C74: Insect netting | D74: 1 | E74: item(s) | F74: 1.5 | I74: 1 | L74: 1.5 | M74: 0.09375
C75: Pouch-misc items | D75: 1 | E75: item(s) | F75: 16.5 | I75: 1 | L75: 16.5 | M75: 1.03125
C76: Albuterol | D76: 0 | E76: item(s) | F76: 1.5 | I76: 1 | L76: 0 | M76: 0
C77: Maps, paper | D77: 1 | E77: item(s) | F77: 9.5 | I77: 1 | L77: 9.5 | M77: 0.59375
C78: Simple manual | D78: 2 | E78: item(s) | F78: 1 | I78: 1 | L78: 2 | M78: 0.125
C79: Camera | D79: 1 | E79: item(s) | F79: 6.5 | I79: 1 | L79: 6.5 | M79: 0.40625
C80: Phone | D80: 1 | E80: item(s) | F80: 3.5 | I80: 1 | L80: 3.5 | M80: 0.21875
C81: Cards, check, cash, key | D81: 1 | E81: item(s) | F81: 2 | I81: 1 | L81: 2 | M81: 0.125
C82: Batteries | D82: 1 | E82: item(s) | F82: 4.5 | I82: 1 | L82: =D82*F82*I82 -> 4.5 | M82: =L82/16 -> 0.28125
C83: Watch | D83: 1 | E83: item(s) | F83: 2 | I83: 1 | L83: 2 | M83: 0.125
C84: Plastic bags | D84: 1 | E84: item(s) | F84: 0.5 | I84: 1 | L84: 0.5 | M84: 0.03125
C86: H2O filter straw | D86: 1 | E86: item(s) | F86: 2 | I86: 1 | L86: =D86*F86*I86 -> 2 | M86: 0.125
C87: 64 oz Platypus H2O bladder | D87: 1 | E87: item(s) | F87: 6 | I87: 1 | L87: =D87*F87*I87 -> 6 | M87: 0.375
C88: 32 oz Nalgene H2O bottle | D88: 1 | E88: item(s) | F88: 7 | I88: 1 | L88: =D88*F88*I88 -> 7 | M88: 0.4375
C89: H2O for platypus | D89: 0 | E89: oz | F89: 1 | G89: 64 | I89: 1 | L89: =D89*F89*G89*I89 -> 0 | M89: 0
C90: H2O for nalgene | D90: 1 | E90: oz | F90: 1 | G90: 32 | I90: 1 | L90: =D90*F90*G90*I90 -> 32 | M90: 2
A91: Hiking, total | L91: =SUM(L58:L90) -> 177.5 | M91: 11.09375
A93: Camping
C94: Tent (Nemo, Elite 1p) + footprint | D94: 1 | E94: items(s) | F94: 39 | L94: =D94*F94 -> 39 | M94: =L94/16 -> 2.4375
C95: Tent (Sierra Designs, Flashlight) | D95: 0 | E95: items(s) | F95: 78 | L95: 0 | M95: 0
C96: Bivvy | D96: 0 | E96: items(s) | F96: 17 | L96: 0 | M96: 0
C97: Bivvy - OR
C98: Tarp 9'x9' | D98: 0 | E98: items(s) | F98: 33 | L98: 0 | M98: 0
C99: Tarp 8'x8' | D99: 0 | E99: items(s) | F99: 25 | L99: 0 | M99: 0
C100: Ground sheet (separate) | D100: 0 | E100: items(s) | F100: 13 | L100: 0 | M100: 0
C101: Footprint - MSR
C102: Sleeping bag, Western Mntnring | D102: 1 | E102: items(s) | F102: 18 | L102: =D102*F102 -> 18 | M102: =L102/16 -> 1.125
C103: Sleeping bag, Marmot | D103: 0 | E103: items(s) | F103: 34 | L103: =D103*F103 -> 0 | M103: =L103/16 -> 0
C104: Air mattress | D104: 1 | E104: items(s) | F104: 14.5 | L104: 14.5 | M104: 0.90625
C105: Rope, straps | D105: 1 | E105: items(s) | F105: 3.5 | L105: 3.5 | M105: 0.21875
C106: Med sack | D106: 1 | E106: items(s) | F106: 16 | L106: 16 | M106: 1
C107: Toilet | D107: 1 | E107: items(s) | F107: 3.5 | L107: 3.5 | M107: 0.21875
A108: Camping, total | L108: =SUM(L94:L107) -> 94.5 | M108: 5.90625
A110: Clothes | B110: * summer, general | D110: Count | G110: 1=take, 0=no | I110: include in pk wt, 0=no
C111: Lite cap shirt* | D111: 1 | E111: item(s) | F111: 4.25 | G111: 1 | I111: 1 | L111: =D111*F111*G111*I111 -> 4.25 | M111: =L111/16 -> 0.265625
C112: Lite cap shirt, tee / long sleeve* | D112: 1 | E112: item(s) | F112: 4.25 | G112: 1 | I112: 1 | L112: =D112*F112*G112*I112 -> 4.25 | M112: =L112/16 -> 0.265625
C113: Cap shirt, grey, hooded* | D113: 1 | E113: item(s) | F113: 5.5 | G113: 1 | I113: 1 | L113: 5.5 | M113: 0.34375
C114: Steel grey warm shirt* | D114: 1 | E114: item(s) | F114: 10 | G114: 1 | I114: 0 | L114: 0 | M114: 0
C115: Mid wt cap z-neck | D115: 1 | E115: item(s) | F115: 9 | G115: 0 | I115: 1 | L115: =D115*F115*G115*I115 -> 0 | M115: 0
C116: Collared shirt | D116: 1 | E116: item(s) | F116: 8 | G116: 0 | I116: 1 | L116: =D116*F116*G116*I116 -> 0 | M116: 0
C117: Blk wind wall jacket, N Face | D117: 1 | E117: item(s) | F117: 26.5 | G117: 0 | I117: 1 | L117: =D117*F117*G117*I117 -> 0 | M117: 0
C118: Blk lined jacket, N Face | D118: 1 | E118: item(s) | F118: 18 | G118: 0 | I118: 1 | L118: 0 | M118: 0
C119: Red wind wall jacket, Marmot | D119: 1 | E119: item(s) | F119: 23.5 | G119: 0 | I119: 1 | L119: 0 | M119: 0
C120: Rain jacket, Marmot* | D120: 1 | E120: item(s) | F120: 12.25 | G120: 1 | I120: 1 | L120: =D120*F120*G120*I120 -> 12.25 | M120: 0.765625
C121: Rain jacket, Columbia | D121: 0 | E121: item(s) | F121: 18 | G121: 0 | I121: 1 | L121: 0 | M121: 0
C122: Down jacket, blue | D122: 0 | E122: item(s) | F122: 24 | G122: 0 | I122: 1 | L122: =D122*F122*G122*I122 -> 0 | M122: =L122/16 -> 0
C123: Dress jacket | D123: 0 | E123: item(s) | F123: 26.5 | G123: 0 | I123: 1 | L123: 0 | M123: 0
C124: Gloves, lite | D124: 1 | E124: item(s) | F124: 1 | G124: 1 | I124: 1 | L124: 1 | M124: 0.0625
C125: Sun-visor* | D125: 1 | E125: item(s) | F125: 2 | G125: 1 | I125: 1 | L125: =D125*F125*G125*I125 -> 2 | M125: =L125/16 -> 0.125
C126: Hat | D126: 1 | E126: item(s) | F126: 5 | G126: 0 | I126: 1 | L126: 0 | M126: 0
C127: Lite cap long u'wear* | D127: 1 | E127: item(s) | F127: 4 | G127: 1 | I127: 0 | L127: 0 | M127: 0
C128: Lite cap long u'wear, spare* | D128: 1 | E128: item(s) | F128: 4 | G128: 1 | I128: 1 | L128: =D128*F128*G128*I128 -> 4 | M128: 0.25
C129: Mid wt cap u'wear | D129: 1 | E129: item(s) | F129: 8 | G129: 0 | I129: 1 | L129: =D129*F129*G129*I129 -> 0 | M129: 0
C130: Short u'wear* | D130: 1 | E130: item(s) | F130: 4 | G130: 1 | I130: 1 | L130: 4 | M130: 0.25
C131: Shorts* | D131: 1 | E131: item(s) | F131: 9 | G131: 1 | I131: 1 | L131: 9 | M131: 0.5625
C132: Hiking pants* | D132: 1 | E132: item(s) | F132: 16 | G132: 1 | I132: 0 | L132: 0 | M132: 0
C133: Belt* | D133: 1 | E133: item(s) | F133: 2 | G133: 1 | I133: 0 | L133: 0 | M133: 0
C134: Jeans | D134: 1 | E134: item(s) | F134: 24 | G134: 0 | I134: 1 | L134: 0 | M134: 0
C135: Rain pants* | D135: 1 | E135: item(s) | F135: 9 | G135: 1 | I135: 1 | L135: 9 | M135: 0.5625
C136: Heavy socks*, wear on travel | D136: 1 | E136: item(s) | F136: 4.5 | G136: 1 | I136: 0 | L136: 0 | M136: 0
C137: Heavy socks* | D137: 1 | E137: item(s) | F137: 4.5 | G137: 1 | I137: 1 | L137: =D137*F137*G137*I137 -> 4.5 | M137: 0.28125
C138: Intermediate sox | D138: 1 | E138: item(s) | F138: 3 | G138: 0 | I138: 1 | L138: 0 | M138: 0
C139: Lite sox* | D139: 1 | E139: item(s) | F139: 2 | G139: 1 | I139: 1 | L139: 2 | M139: 0.125
C140: Bandana* | D140: 1 | E140: item(s) | F140: 1 | G140: 1 | I140: 0 | L140: 0 | M140: 0
C141: MSR Towel* | D141: 1 | E141: item(s) | F141: 2 | G141: 1 | I141: 1 | L141: 2 | M141: 0.125
C142: Stuff sack* | D142: 1 | E142: item(s) | F142: 2 | G142: 1 | I142: 1 | L142: 2 | M142: 0.125
C143: … sack liner* | D143: 1 | E143: item(s) | F143: 1 | G143: 1 | I143: 1 | L143: 1 | M143: 0.0625
C144: … sack straps* | D144: 1 | E144: item(s) | F144: 1 | G144: 1 | I144: 1 | L144: 1 | M144: 0.0625
A145: Clothes, total | L145: =SUM(L111:L144) -> 67.75 | M145: 4.234375
A147: Total pack | L147: =L38+L55+L91+L108+L145 -> 525.5 | M147: =L147/16 -> 32.84375

Sheet Travel-camping
A1: Trip length
B2: Days = | C2: =C3*7 -> 7
B3: Weeks = | C3: 1
B4: Months = | C4: =C3/4.35 -> 0.2298850575
A6: Travel-camping material is in a blue font
A8: Class | B8: Sub-class
A9: Food | B9: Meal | D9: 1=take, 0=no | E9: unit | F9: oz/unit | G9: units/day | H9: /week | I9: /month | J9: weeks | K9: /trip | L9: oz (total) | M9: lb
B10: Breakfast
C11: Granola | D11: 0 | E11: cup | F11: 4 | H11: 5 | J11: =C3 -> 1 | L11: =D11*F11*H11*J11 -> 0 | M11: =L11/16 -> 0
C12: Milk powder | D12: 0 | E12: cup | F12: 6.5 | H12: 1 | J12: =C3 -> 1 | L12: =D12*F12*H12*J12 -> 0 | M12: =L12/16 -> 0
C13: Coffee | D13: 1 | E13: oz | F13: 1 | G13: 5 tbsp | H13: 10 | J13: =C3 -> 1 | L13: 10 | M13: 0.625
C14: Sugar | D14: 1 | E14: oz | F14: 1 | H14: 7 | J14: =C3 -> 1 | L14: 7 | M14: 0.4375
C15: Vitamins, meds, xtra ibuprofen | D15: 1 | E15: oz | F15: 1 | H15: 3.25 | J15: =C3 -> 1 | L15: 3.25 | M15: =L15/16 -> 0.203125
C16: Teas, drinks | D16: 0 | E16: oz | F16: 1 | K16: 1.5 | L16: =D16*F16*K16 -> 0 | M16: =L16/16 -> 0
C17: Condensed milk | D17: 1 | E17: can | F17: 14 | H17: 2 | J17: 1 | L17: =D17*F17*H17*J17 -> 28 | M17: =L17/16 -> 1.75
B18: Trail
C19: Sesame sticks | D19: 1 | E19: fist | F19: 1.333333333 | H19: 4 | J19: =C3 -> 1 | L19: 5.333333333 | M19: =L19/16 -> 0.3333333333
C20: Nuts | D20: 1 | E20: fist | F20: 1.666666667 | H20: 4 | J20: =C3 -> 1 | L20: 6.666666667 | M20: 0.4166666667
C21: Dried fruit | D21: 1 | E21: fist | F21: 2.166666667 | H21: 4 | J21: =C3 -> 1 | L21: 8.666666667 | M21: 0.5416666667
B22: Dinner
C23: Rice, instant | D23: 0 | E23: fist | F23: 1.333333333 | H23: 7 | J23: =C3 -> 1 | L23: 0 | M23: =L23/16 -> 0
C24: Beans | D24: 0 | E24: fist | F24: 1.666666667 | H24: 6 | J24: =C3 -> 1 | L24: 0 | M24: =L24/16 -> 0
C25: Ramen | D25: 1 | E25: packet | F25: 2.5 | H25: 5 | J25: =C3 -> 1 | L25: 12.5 | M25: 0.78125
C26: Broths | D26: 1 | E26: packet | F26: 0.5 | H26: 2 | J26: =C3 -> 1 | L26: 1 | M26: 0.0625
C27: Jerky | D27: 0 | E27: packet | F27: 3 | H27: 1 | J27: =C3 -> 1 | L27: 0 | M27: 0
C28: Fruit bars | D28: 1 | E28: bar | F28: 1.2 | H28: 5 | J28: =C3 -> 1 | L28: 6 | M28: 0.375
C29: Turmeric | D29: 1 | E29: oz | F29: 1 | H29: 1 | J29: =C3 -> 1 | L29: 1 | M29: 0.0625
C30: Jalapenos | D30: 0 | E30: jalapeno | F30: 0.5 | H30: 2 | J30: =C3 -> 1 | L30: 0 | M30: 0
C31: Garlic, packets | D31: 0 | E31: packet | F31: 1.5 | H31: 1 | J31: =C3 -> 1 | L31: 0 | M31: 0
C32: Onion, thumb dia | D32: 0 | E32: onion | F32: 6 | H32: 1 | J32: =C3 -> 1 | L32: 0 | M32: 0
C33: Spices | D33: 0 | E33: oz | F33: 0.5 | H33: 3 | J33: =C3 -> 1 | L33: 0 | M33: 0
C34: Salt | D34: 1 | E34: oz | F34: 1 | H34: 2 | J34: =C3 -> 1 | L34: 2 | M34: 0.125
C35: Veg oil | D35: 0 | E35: oz | F35: 1 | H35: 2 | J35: =C3 -> 1 | L35: 0 | M35: 0
B36: Stuff sacks | D36: 0 | E36: sack | F36: 4 | K36: 1 | L36: =D36*F36*K36 -> 0 | M36: 0
A37: Food, total | L37: =SUM(L11:L36) -> 91.41666667 | M37: =L37/16 -> 5.713541667
A39: Cooking... | D39: Count
C40: Utensils | D40: 0 | E40: item(s) | F40: 8.5 | K40: 1 | L40: =D40*F40 -> 0 | M40: =L40/16 -> 0
C42: Stove-MSR Dragonfly | D42: 0 | E42: item(s) | F42: 14.5 | K42: 1 | L42: =D42*F42 -> 0 | M42: =L42/16 -> 0
C43: Heat shield | D43: 0 | E43: item(s) | F43: 2.5 | K43: 1 | L43: 0 | M43: 0
C44: Pot, titanium | D44: 0 | E44: item(s) | F44: 8 | K44: 1 | L44: 0 | M44: 0
C45: Pot, stainless, 0.50 gal | D45: 0 | E45: item(s) | F45: 20 | K45: 1 | L45: 0 | M45: 0
C46: Pot, stainless, 0.25 gal | D46: 0 | E46: item(s) | F46: 13 | K46: 1 | L46: 0 | M46: 0
C47: Fuel bottle, 1 l tr/ 33oz | D47: 0 | E47: item(s) | F47: 7.6 | K47: 1 | L47: =D47*F47 -> 0 | M47: =L47/16 -> 0
C48: Fuel bottle, 591 ml / 20oz | D48: 1 | E48: item(s) | F48: 6 | K48: 1 | L48: =D48*F48 -> 6 | M48: =L48/16 -> 0.375
C49: Fuel bottle, 325 ml / 11oz | D49: 0 | E49: item(s) | F49: 4 | K49: 1 | L49: =D49*F49 -> 0 | M49: =L49/16 -> 0
C51: Fuel | E51: fl oz | F51: 0.7 | H51: 32 | L51: =F51*H51 -> 22.4 | M51: =L51/16 -> 1.4
C53: MSR Pocket Rocket (get?) | D53: 0 | E53: item(s) | F53: 2.6 | K53: 1 | L53: =D53*F53 -> 0 | M53: =L53/16 -> 0
C54: MSR 16 oz cannister-ask at Ad-Edge | D54: 0 | E54: item(s) | F54: 16 | K54: 1 | L54: 0 | M54: 0
A55: Cooking… total | L55: =SUM(L40:L51) -> 28.4 | M55: 1.775
A57: Hiking, travel | I57: include in pack weight, 0 = no
C58: Backpack, Osprey, Ejos | D58: 0 | E58: item(s) | F58: 43 | I58: 1 | L58: =D58*F58*I58 -> 0 | M58: =L58/16 -> 0
C59: Backpack, Osprey, Argon 85M | D59: 0 | E59: item(s) | F59: 104 | I59: 1 | L59: =D59*F59*I59 -> 0 | M59: =L59/16 -> 0
C60: Olive Jansport daypack | D60: 1 | E60: item(s) | F60: 17 | I60: 1 | L60: =D60*F60*I60 -> 17 | M60: =L60/16 -> 1.0625
C61: Binoculars | D61: 0 | E61: item(s) | F61: 8.5 | I61: 1 | L61: =D61*F61*I61 -> 0 | M61: =L61/16 -> 0
C62: Rifle, .30-06 | D62: 0 | E62: item(s) | F62: 144 | I62: 1 | L62: 0 | M62: 0
C63: Shoes, ankle high | D63: 0 | E63: item(s) | F63: 48 | I63: 0 | L63: 0 | M63: 0
C64: Shoes, running | D64: 0 | E64: item(s) | F64: 30 | I64: 0 | L64: 0 | M64: 0
C65: Sneakers | D65: 0 | E65: item(s) | F65: 29 | I65: 1 | L65: 0 | M65: 0
C66: Sandals | D66: 0 | E66: item(s) | F66: 19 | I66: 1 | L66: 0 | M66: 0
C67: Shoes, dress | D67: 1 | E67: item(s) | F67: 26 | I67: 1 | L67: 26 | M67: 1.625
C68: MSR Snowshoes | D68: 0 | E68: item(s) | F68: 59 | I68: 1 | L68: 0 | M68: 0
C69: … MSR Snowshoe extebsuibs | D69: 0 | E69: item(s) | F69: 17 | I69: 1 | L69: 0 | M69: 0
C70: Skis and poles | D70: 0 | E70: item(s) | F70: 118 | I70: 1 | L70: 0 | M70: 0
C71: Crampons | D71: 0 | E71: item(s) | F71: 40.75 | I71: 1 | L71: 0 | M71: 0
C72: Trekking poles, Leki | D72: 0 | E72: item(s) | F72: 20 | I72: 1 | L72: =D72*F72*I72 -> 0 | M72: =L72/16 -> 0
C73: Insect netting | D73: 0 | E73: item(s) | F73: 1.5 | I73: 1 | L73: 0 | M73: 0
C74: Pouch-misc items | D74: 0 | E74: item(s) | F74: 16.5 | I74: 1 | L74: 0 | M74: 0
C75: Albuterol | D75: 0 | E75: item(s) | F75: 1.5 | I75: 1 | L75: 0 | M75: 0
C76: Maps, paper | D76: 0 | E76: item(s) | F76: 9.5 | I76: 1 | L76: 0 | M76: 0
C77: Simple manual | D77: 0 | E77: item(s) | F77: 1 | I77: 1 | L77: 0 | M77: 0
C78: Camera | D78: 0 | E78: item(s) | F78: 6.5 | I78: 1 | L78: 0 | M78: 0
C79: Phone | D79: 0 | E79: item(s) | F79: 3.5 | I79: 1 | L79: 0 | M79: 0
C80: Cards, check, cash, key | D80: 0 | E80: item(s) | F80: 2 | I80: 1 | L80: 0 | M80: 0
C81: Batteries | D81: 0 | E81: item(s) | F81: 4.5 | I81: 1 | L81: 0 | M81: 0
C82: Watch | D82: 0 | E82: item(s) | F82: 2 | I82: 1 | L82: 0 | M82: 0
C83: Plastic bags | D83: 0 | E83: item(s) | F83: 0.5 | I83: 1 | L83: 0 | M83: 0
C85: H2O filter straw | D85: 0 | E85: item(s) | F85: 2 | I85: 1 | L85: =D85*F85*I85 -> 0 | M85: 0
C86: 64 oz Platypus H2O bladder | D86: 0 | E86: item(s) | F86: 6 | I86: 1 | L86: =D86*F86*I86 -> 0 | M86: 0
C87: 32 oz Nalgene H2O bottle | D87: 0 | E87: item(s) | F87: 7 | I87: 1 | L87: =D87*F87*I87 -> 0 | M87: 0
C88: H2O for platypus | D88: 0 | E88: oz | F88: 1 | G88: 64 | I88: 1 | L88: =D88*F88*G88*I88 -> 0 | M88: 0
C89: H2O for nalgene | D89: 0 | E89: oz | F89: 1 | G89: 32 | I89: 1 | L89: =D89*F89*G89*I89 -> 0 | M89: 0
A90: Hiking, total | L90: =SUM(L58:L89) -> 43 | M90: 2.6875
A92: Camping
C93: Tent (Nemo, Elite 1p) + footprint | D93: 0 | E93: items(s) | F93: 39 | L93: =D93*F93 -> 0 | M93: =L93/16 -> 0
C94: Tent (Sierra Designs, Flashlight) | D94: 0 | E94: items(s) | F94: 78 | L94: 0 | M94: 0
C95: Bivvy | D95: 0 | E95: items(s) | F95: 17 | L95: 0 | M95: 0
C96: Tarp 9'x9' | D96: 0 | E96: items(s) | F96: 33 | L96: 0 | M96: 0
C97: Tarp 8'x8' | D97: 0 | E97: items(s) | F97: 25 | L97: 0 | M97: 0
C98: Ground sheet (separate) | D98: 0 | E98: items(s) | F98: 13 | L98: 0 | M98: 0
C99: Sleeping bag, Western Mntnring | D99: 0 | E99: items(s) | F99: 18 | L99: 0 | M99: 0
C100: Sleeping bag, Marmot | D100: 0 | E100: items(s) | F100: 34 | L100: 0 | M100: 0
C101: Air mattress | D101: 0 | E101: items(s) | F101: 14.5 | L101: 0 | M101: 0
C102: Rope, straps | D102: 0 | E102: items(s) | F102: 3.5 | L102: 0 | M102: 0
C103: Med sack | D103: 0 | E103: items(s) | F103: 16 | L103: 0 | M103: 0
C104: Toilet | D104: 1 | E104: items(s) | F104: 3.5 | L104: 3.5 | M104: 0.21875
A105: Camping, total | L105: =SUM(L93:L104) -> 3.5 | M105: 0.21875
A107: Clothes | B107: * summer, general | D107: Count | G107: 1=take, 0=no | I107: include in pk wt, 0=no
C108: Lite cap shirt* | D108: 0 | E108: item(s) | F108: 4.25 | G108: 1 | I108: 1 | L108: =D108*F108*G108*I108 -> 0 | M108: =L108/16 -> 0
C109: Lite cap shirt, tee / long sleeve* | D109: 0 | E109: item(s) | F109: 4.25 | G109: 1 | I109: 1 | L109: =D109*F109*G109*I109 -> 0 | M109: =L109/16 -> 0
C110: Cap shirt, grey, hooded* | D110: 0 | E110: item(s) | F110: 5.5 | G110: 1 | I110: 1 | L110: 0 | M110: 0
C111: Steel grey warm shirt* | D111: 0 | E111: item(s) | F111: 10 | G111: 1 | I111: 0 | L111: 0 | M111: 0
C112: Mid wt cap z-neck | D112: 0 | E112: item(s) | F112: 9 | G112: 0 | I112: 1 | L112: 0 | M112: 0
C113: Collared shirt | D113: 1 | E113: item(s) | F113: 8 | G113: 0 | I113: 1 | L113: 0 | M113: 0
C114: Blk wind wall jacket, N Face | D114: 0 | E114: item(s) | F114: 26.5 | G114: 0 | I114: 1 | L114: 0 | M114: 0
C115: Blk lined jacket, N Face | D115: 0 | E115: item(s) | F115: 18 | G115: 0 | I115: 1 | L115: 0 | M115: 0
C116: Red wind wall jacket, Marmot | D116: 0 | E116: item(s) | F116: 23.5 | G116: 0 | I116: 1 | L116: 0 | M116: 0
C117: Rain jacket, Marmot* | D117: 1 | E117: item(s) | F117: 12.25 | G117: 1 | I117: 1 | L117: 12.25 | M117: 0.765625
C118: Rain jacket, Columbia | D118: 1 | E118: item(s) | F118: 18 | G118: 0 | I118: 1 | L118: 0 | M118: 0
C119: Down jacket, blue | D119: 1 | E119: item(s) | F119: 24 | G119: 0 | I119: 1 | L119: 0 | M119: 0
C120: Dress jacket | D120: 1 | E120: item(s) | F120: 26.5 | G120: 0 | I120: 1 | L120: 0 | M120: 0
C121: Gloves, lite | D121: 0 | E121: item(s) | F121: 1 | G121: 0 | I121: 1 | L121: 0 | M121: 0
C122: Sun-visor* | D122: 0 | E122: item(s) | F122: 2 | G122: 1 | I122: 1 | L122: 0 | M122: 0
C123: Hat | D123: 0 | E123: item(s) | F123: 5 | G123: 0 | I123: 1 | L123: 0 | M123: 0
C124: Lite cap long u'wear* | D124: 0 | E124: item(s) | F124: 4 | G124: 1 | I124: 0 | L124: 0 | M124: 0
C125: Lite cap long u'wear, spare* | D125: 0 | E125: item(s) | F125: 4 | G125: 1 | I125: 1 | L125: 0 | M125: 0
C126: Mid wt cap u'wear | D126: 0 | E126: item(s) | F126: 8 | G126: 0 | I126: 1 | L126: 0 | M126: 0
C127: Short u'wear* | D127: 0 | E127: item(s) | F127: 4 | G127: 1 | I127: 1 | L127: 0 | M127: 0
C128: Shorts* | D128: 0 | E128: item(s) | F128: 9 | G128: 1 | I128: 1 | L128: 0 | M128: 0
C129: Hiking pants* | D129: 0 | E129: item(s) | F129: 16 | G129: 1 | I129: 0 | L129: 0 | M129: 0
C130: Belt* | D130: 0 | E130: item(s) | F130: 2 | G130: 1 | I130: 0 | L130: 0 | M130: 0
C131: Jeans | D131: 1 | E131: item(s) | F131: 24 | G131: 1 | I131: 1 | L131: 24 | M131: 1.5
C132: Rain pants* | D132: 0 | E132: item(s) | F132: 9 | G132: 1 | I132: 1 | L132: 0 | M132: 0
C133: Heavy socks*, wear on travel | D133: 0 | E133: item(s) | F133: 4.5 | G133: 1 | I133: 0 | L133: 0 | M133: 0
C134: Heavy socks* | D134: 0 | E134: item(s) | F134: 4.5 | G134: 1 | I134: 1 | L134: 0 | M134: 0
C135: Intermediate sox | D135: 0 | E135: item(s) | F135: 3 | G135: 0 | I135: 1 | L135: 0 | M135: 0
C136: Lite sox* | D136: 0 | E136: item(s) | F136: 2 | G136: 1 | I136: 1 | L136: 0 | M136: 0
C137: Bandana* | D137: 0 | E137: item(s) | F137: 1 | G137: 1 | I137: 0 | L137: 0 | M137: 0
C138: MSR Towel* | D138: 0 | E138: item(s) | F138: 2 | G138: 1 | I138: 1 | L138: 0 | M138: 0
C139: Stuff sack* | D139: 0 | E139: item(s) | F139: 2 | G139: 1 | I139: 1 | L139: 0 | M139: 0
C140: … sack liner* | D140: 0 | E140: item(s) | F140: 1 | G140: 1 | I140: 1 | L140: 0 | M140: 0
C141: … sack straps* | D141: 0 | E141: item(s) | F141: 1 | G141: 1 | I141: 1 | L141: 0 | M141: 0
A142: Clothes, total | L142: =SUM(L108:L141) -> 36.25 | M142: 2.265625
A144: Total pack | L144: =L37+L55+L90+L105+L142 -> 202.5666667 | M144: =L144/16 -> 12.66041667

Sheet Planning
A1: Planning and preparation
B2: hiking list | C2: (html)
B3: hiking list-long | C3: (html)
B5: Main
C6: plan-prep aim-what-where-itinerary-travel > tickets, permits, hikes, air-forest conditions
C7: trial pack + hike-with-old-pack
C8: last min mail home, feet, fresh items
B10: Get
C11: hiking gear and supplies
C12: light stove
C13: town and camping supplies
C14: short sleeve t-shirt
C15: lite z-neck shirt
A18: Total pack weight for backpacking and travel = | F18: =Backpacking!L147+'Travel-camping'!L144 -> 728.0666667 | G18: oz | H18: =F18/16 -> 45.50416667 | I18: lb
